bitfinex-derivatives/quotes_BTCF0:USTF0_20251229
["timestamp","ask_amount","ask_price","bid_price","bid_amount"]
[1766977926310,9e-08,89500.0,89479.0,0.00016759]
[1766977927412,0.1062633,89499.0,89479.0,0.00016759]
[1766977927710,0.05624,89498.0,89479.0,0.00016759]
[1766977928210,0.05624,89498.0,89480.0,0.0111857]
[1766977929910,0.22324007,89490.0,89460.0,0.02986079]
[1766977930117,0.22324007,89490.0,89466.0,0.05624]
[1766977930709,0.09508,89489.0,89458.0,0.02986079]
[1766977930911,0.22324007,89480.0,89466.0,0.0111873]
[1766977931112,0.00016759,89482.0,89469.0,0.011187]
[1766977931818,0.00016759,89482.0,89465.0,0.01135509]
[1766977932408,0.22324007,89480.0,89465.0,0.00016759]
[1766977932609,0.0111873,89467.0,89445.0,0.04105079]
[1766977932820,0.15132,89466.0,89440.0,0.0952189]
[1766977933017,0.09508,89465.0,89440.0,0.0952189]
[1766977933219,0.09508,89465.0,89451.0,0.0111893]
[1766977933815,0.09508,89465.0,89449.0,0.00016769]
[1766977934022,0.09508,89465.0,89450.0,0.0111894]
[1766977934912,0.09508,89465.0,89449.0,0.00016769]
[1766977936212,0.09508,89465.0,89449.0,0.01135719]
[1766977936723,0.0111878,89464.0,89449.0,0.00016769]
[1766977937129,0.09508,89465.0,89440.0,0.0001389]
[1766977937314,0.09508,89465.0,89425.0,0.0111925]
[1766977937510,0.09508,89465.0,89431.0,0.0111917]
[1766977937714,0.0111882,89461.0,89423.0,0.00223657]
[1766977938010,0.09508,89460.0,89440.0,0.0111907]
[1766977938217,0.05628,89464.0,89423.0,0.03223657]
[1766977938218,0.0111881,89461.0,89435.0,0.0111913]
[1766977938410,0.05628,89459.0,89438.0,0.0111909]
[1766977939722,0.05628,89459.0,89434.0,0.0111913]
[1766977940119,0.05628,89459.0,89437.0,0.011191]
[1766977941320,0.0111888,89455.0,89433.0,0.00016769]
[1766977941623,0.05628,89459.0,89429.0,0.011192]
[1766977941824,0.05628,89459.0,89425.0,0.0111925]
[1766977942026,0.0111895,89450.0,89425.0,0.0111925]
[1766977942215,0.1514,89449.0,89428.0,0.0111921]
[1766977942415,0.1514,89449.0,89430.0,0.00016769]
[1766977942724,0.00016769,89447.0,89430.0,0.00016769]
[1766977943716,0.00016769,89447.0,89423.0,0.00223657]
[1766977943921,0.00016769,89447.0,89406.0,0.02986079]
[1766977944220,0.00016769,89447.0,89389.0,0.2378]
[1766977944221,0.0111938,89416.0,89391.0,0.04105749]
[1766977944426,0.16269007,89415.0,89387.0,0.02986079]
[1766977944631,0.16269007,89415.0,89390.0,0.0111969]
[1766977944632,0.09512,89414.0,89390.0,0.0111969]
[1766977944817,0.09512,89414.0,89393.0,0.00011199]
[1766977944818,0.00016778,89411.0,89393.0,0.00011199]
[1766977945318,0.15144,89410.0,89397.0,0.011196]
[1766977946522,0.00016778,89411.0,89397.0,0.011196]
[1766977946728,0.0111917,89433.0,89406.0,0.0111949]
[1766977946923,0.10112,89432.0,89406.0,0.0111949]
[1766977947223,0.011192,89430.0,89389.0,0.09512]
[1766977947416,0.011192,89430.0,89389.0,0.12512]
[1766977947614,0.0111927,89424.0,89389.0,0.12512]
[1766977947927,0.00016778,89415.0,89398.0,0.01136368]
[1766977948122,0.15144,89414.0,89398.0,0.01136368]
[1766977949021,0.15144,89414.0,89398.0,0.00016778]
[1766977949421,0.15144,89414.0,89399.0,0.0111957]
[1766977950122,0.05632,89413.0,89402.0,0.0111954]
[1766977950327,0.15144,89413.0,89402.0,0.0111954]
[1766977950630,0.15144,89413.0,89398.0,0.00016778]
[1766977950830,0.15144,89413.0,89399.0,0.0111958]
[1766977951022,0.15144,89413.0,89398.0,0.00016778]
[1766977951420,0.15144,89413.0,89398.0,0.01136368]
[1766977951731,0.00016778,89415.0,89401.0,0.0111955]
[1766977951931,8e-08,89415.0,89408.0,0.0111947]
[1766977952238,0.05632,89417.0,89408.0,0.0111947]
[1766977953631,0.05632,89420.0,89411.0,0.0111943]
[1766977953825,0.05632,89420.0,89407.0,0.0111947]
[1766977954030,0.05632,89420.0,89393.0,0.0111965]
[1766977954230,0.05632,89420.0,89411.0,0.0111942]
[1766977954628,8.877e-05,89419.0,89411.0,0.0111942]
[1766977955331,8.877e-05,89419.0,89407.0,0.00016778]
[1766977955332,8.877e-05,89419.0,89407.0,0.01136248]
[1766977955733,8.877e-05,89419.0,89410.0,0.0111944]
[1766977956033,8.877e-05,89419.0,89407.0,0.00016778]
[1766977956230,8.877e-05,89419.0,89398.0,0.0111959]
[1766977956231,0.0111935,89418.0,89398.0,0.0111959]
[1766977956926,0.0111935,89418.0,89377.0,0.03981734]
[1766977956927,8.877e-05,89419.0,89390.0,0.0111968]
[1766977957127,0.0111948,89408.0,89396.0,0.00016778]
[1766977957328,0.15156877,89407.0,89390.0,0.0111969]
[1766977957534,0.09516,89406.0,89390.0,0.0111969]
[1766977957935,0.09516,89406.0,89393.0,0.0111965]
[1766977958135,8.877e-05,89407.0,89393.0,0.0111965]
[1766977958334,0.05636,89405.0,89393.0,0.0111965]
[1766977958734,0.15148,89404.0,89393.0,0.0111965]
[1766977960936,8.877e-05,89407.0,89393.0,0.0111965]
[1766977961132,0.05632,89403.0,89393.0,0.0111965]
[1766977961440,0.05632,89403.0,89390.0,0.0111969]
[1766977961638,0.05632,89403.0,89376.0,0.0111987]
[1766977961639,0.05632,89403.0,89392.0,0.0111966]
[1766977962437,0.05632,89403.0,89389.0,0.01130899]
[1766977962940,0.05632,89403.0,89391.0,0.0111967]
[1766977963439,0.05632,89403.0,89389.0,0.00011199]
[1766977963935,0.15148,89402.0,89390.0,0.0111969]
[1766977964325,0.15148,89402.0,89393.0,0.0111966]
[1766977965240,0.05632,89401.0,89389.0,0.00011199]
[1766977965439,0.05632,89400.0,89398.0,0.0111959]
[1766977965935,8.877e-05,89407.0,89398.0,0.0111959]
[1766977966128,0.0111936,89417.0,89390.0,0.0111969]
[1766977966129,0.09516,89417.0,89390.0,0.0111969]
[1766977966334,0.05632,89416.0,89411.0,0.0111942]
[1766977966530,0.00402238,89416.0,89408.0,0.0111947]
[1766977966726,0.00402238,89416.0,89394.0,0.0111964]
[1766977966926,0.00402238,89416.0,89394.0,0.03]
[1766977967129,8e-08,89414.0,89409.0,0.0111945]
[1766977967439,8e-08,89414.0,89411.0,0.0111942]
[1766977969340,8e-08,89420.0,89417.0,0.0111935]
[1766977969536,0.08041599,89455.0,89402.0,0.09516]
[1766977969537,0.05632,89428.0,89419.0,0.0111933]
[1766977969835,0.05632,89428.0,89406.0,0.09516]
[1766977969836,0.05632,89428.0,89422.0,0.0111929]
[1766977970541,0.05632,89428.0,89406.0,0.09516]
[1766977970542,0.05632,89428.0,89419.0,0.0111933]
[1766977970941,0.05632,89428.0,89421.0,0.0111929]
[1766977971436,0.00016778,89434.0,89416.0,0.00016778]
[1766977971640,0.00016778,89434.0,89416.0,0.12532778]
[1766977971841,8e-08,89434.0,89430.0,0.0111919]
[1766977972037,0.09516,89441.0,89430.0,0.0111919]
[1766977972336,0.09516,89441.0,89418.0,0.0111934]
[1766977972545,0.05636,89444.0,89437.0,0.0111911]
[1766977972838,0.05636,89445.0,89433.0,0.0111915]
[1766977973144,0.00016778,89440.0,89433.0,0.0111915]
[1766977973444,0.00016778,89440.0,89429.0,0.0111919]
[1766977973742,0.00016778,89440.0,89425.0,0.0111924]
[1766977975537,0.00016778,89440.0,89423.0,0.09532778]
[1766977975936,0.00016778,89440.0,89427.0,0.0111923]
[1766977976137,0.00016778,89440.0,89430.0,0.0111918]
[1766977976540,0.00016778,89440.0,89429.0,0.011192]
[1766977976736,0.00016778,89440.0,89423.0,0.09532778]
[1766977976945,0.00016778,89440.0,89423.0,0.12532778]
[1766977977643,0.00016778,89440.0,89430.0,0.0111918]
[1766977979044,0.0111894,89450.0,89430.0,0.0111918]
[1766977979246,0.05632,89451.0,89423.0,0.09532778]
[1766977979544,0.0675093,89451.0,89423.0,0.12532778]
[1766977979931,0.00016778,89446.0,89423.0,0.12532778]
[1766977981243,0.00016778,89446.0,89428.0,0.0111921]
[1766977981437,0.00016778,89446.0,89430.0,0.0111918]
[1766977981839,0.00016778,89446.0,89423.0,0.09532778]
[1766977981840,0.00016778,89446.0,89434.0,0.0111913]
[1766977982043,0.00016778,89446.0,89423.0,0.09532778]
[1766977982044,8e-08,89446.0,89440.0,0.0111906]
[1766977982439,8e-08,89446.0,89444.0,0.0111901]
[1766977982952,8e-08,89446.0,89438.0,0.0111909]
[1766977984046,8e-08,89446.0,89441.0,0.0111905]
[1766977984650,8e-08,89446.0,89433.0,0.09512]
[1766977984651,8e-08,89446.0,89437.0,0.0111909]
[1766977985150,8e-08,89446.0,89434.0,0.0111914]
[1766977985343,8e-08,89446.0,89433.0,0.09512]
[1766977985544,8e-08,89446.0,89433.0,0.12512]
[1766977985743,8e-08,89446.0,89439.0,0.0111907]
[1766977985945,8e-08,89446.0,89442.0,0.0111904]
[1766977986148,8e-08,89446.0,89438.0,0.0111909]
[1766977986649,8e-08,89446.0,89440.0,0.0111906]
[1766977987243,8e-08,89446.0,89436.0,0.0111911]
[1766977990255,8e-08,89446.0,89434.0,0.0111913]
[1766977990459,8e-08,89446.0,89431.0,0.1514]
[1766977990656,8e-08,89446.0,89439.0,0.0111908]
[1766977990956,8e-08,89446.0,89435.0,0.0111912]
[1766977991343,8e-08,89446.0,89437.0,0.011191]
[1766977991545,8e-08,89446.0,89431.0,0.1514]
[1766977991854,8e-08,89446.0,89442.0,0.0111904]
[1766977992044,8e-08,89446.0,89440.0,0.0111907]
[1766977992249,8e-08,89446.0,89437.0,0.011191]
[1766977992746,8e-08,89446.0,89433.0,0.0111915]
[1766977992946,8e-08,89446.0,89435.0,0.0111912]
[1766977994050,8e-08,89446.0,89437.0,0.011191]
[1766977995060,0.14916501,89455.0,89437.0,0.011191]
[1766977995454,0.14916501,89455.0,89439.0,0.0111907]
[1766977997456,0.14916501,89455.0,89441.0,0.0111905]
[1766977997860,0.14916501,89455.0,89438.0,0.0111909]
[1766977998364,0.00016767,89456.0,89431.0,0.1514]
[1766977998555,0.00016767,89456.0,89431.0,0.1814]
[1766977999256,0.08041599,89480.0,89432.0,0.02987103]
[1766977999456,0.15231113,89497.0,89432.0,0.02987103]
[1766977999457,0.09512,89484.0,89440.0,0.22312994]
[1766977999768,0.011186,89478.0,89458.0,0.0111883]
[1766977999964,0.0111856,89481.0,89460.0,0.0111881]
[1766978000468,0.0111859,89478.0,89462.0,0.00016768]
[1766978001459,0.0111856,89481.0,89462.0,0.00016768]
[1766978001661,0.05628,89483.0,89468.0,0.0111872]
[1766978001864,0.05628,89483.0,89462.0,0.00016768]
[1766978002065,0.05628,89483.0,89467.0,0.0111873]
[1766978003461,0.0111846,89489.0,89467.0,0.0111873]
[1766978003661,0.09512,89501.0,89487.0,0.0111848]
[1766978004559,0.09512,89501.0,89490.0,0.0111844]
[1766978004760,0.0111798,89527.0,89485.0,0.00016768]
[1766978004761,0.09512,89516.0,89489.0,0.09512]
[1766978004964,0.05628,89514.0,89494.0,0.00016758]
[1766978005372,0.05628,89514.0,89498.0,0.0111834]
[1766978005572,0.09512,89516.0,89494.0,0.01135148]
[1766978005866,0.09512,89516.0,89501.0,0.011183]
[1766978006268,0.09512,89516.0,89497.0,0.0111835]
[1766978006970,0.05223358,89543.0,89494.0,0.00016758]
[1766978006971,0.05628,89522.0,89500.0,0.0111831]
[1766978007274,0.05628,89522.0,89501.0,0.1514]
[1766978007566,0.0111811,89517.0,89501.0,0.1514]
[1766978007768,0.0111806,89521.0,89501.0,0.1514]
[1766978008168,0.05628,89522.0,89494.0,0.00016758]
[1766978008169,0.22312994,89520.0,89494.0,0.00016758]
[1766978008386,0.0111813,89515.0,89494.0,0.00016758]
[1766978008571,0.15136,89514.0,89494.0,0.00016758]
[1766978008767,0.1062616,89513.0,89494.0,0.00016758]
[1766978008965,0.011182,89510.0,89494.0,0.00016758]
[1766978010062,0.09508,89513.0,89494.0,0.00016758]
[1766978010362,0.0111817,89512.0,89494.0,0.00016758]
[1766978010561,0.0111817,89512.0,89490.0,0.15132]
[1766978010562,0.0111817,89512.0,89488.0,0.1625446]
[1766978010866,0.0111817,89512.0,89488.0,0.1925446]
[1766978011260,0.09508,89513.0,89488.0,0.03]
[1766978011459,0.0111826,89505.0,89485.0,0.15136]
[1766978011870,0.00016691,89509.0,89485.0,0.15136]
[1766978012278,0.00016691,89509.0,89486.0,0.0111848]
[1766978012682,0.00016691,89509.0,89489.0,0.00016758]
[1766978013774,0.00016691,89509.0,89489.0,0.05640758]
[1766978014479,0.00016691,89509.0,89489.0,0.06759208]
[1766978014778,0.00016691,89509.0,89492.0,0.0111842]
[1766978014977,0.09508,89524.0,89497.0,0.0111835]
[1766978015273,0.0111811,89517.0,89497.0,0.0111835]
[1766978015580,0.0111811,89517.0,89496.0,0.15132]
[1766978015881,0.00016758,89515.0,89498.0,0.00016758]
[1766978016978,0.00016758,89515.0,89499.0,0.0111833]
[1766978017179,0.00016758,89515.0,89498.0,0.00016758]
[1766978017180,0.00016758,89515.0,89501.0,0.0111829]
[1766978017370,0.00016758,89515.0,89498.0,0.00016758]
[1766978017574,0.00016758,89515.0,89499.0,0.0111833]
[1766978018076,0.00016758,89515.0,89498.0,0.00016758]
[1766978018469,0.09508,89521.0,89500.0,0.0111831]
[1766978018869,0.09508,89521.0,89498.0,0.00016758]
[1766978018870,0.09508,89521.0,89502.0,0.0111828]
[1766978019170,0.0111798,89528.0,89504.0,0.0111826]
[1766978019373,0.15396995,89540.0,89498.0,0.00016758]
[1766978019576,0.05624,89539.0,89500.0,0.22312994]
[1766978019887,0.05624,89539.0,89514.0,0.0111814]
[1766978020081,0.05624,89539.0,89518.0,0.00016758]
[1766978020278,0.1062585,89538.0,89518.0,0.00016758]
[1766978020474,0.15396995,89540.0,89518.0,0.00016758]
[1766978020666,0.15132,89539.0,89518.0,0.01134838]
[1766978021266,0.15132,89539.0,89519.0,0.09508]
[1766978021769,0.15132,89539.0,89520.0,0.05624]
[1766978024983,0.0111785,89538.0,89520.0,0.05624]
[1766978025167,0.15396995,89540.0,89520.0,0.05624]
[1766978025367,0.16514825,89540.0,89520.0,0.05624]
[1766978025576,0.15396995,89540.0,89520.0,0.05624]
[1766978026582,0.16514825,89540.0,89520.0,0.05624]
[1766978026785,0.15396995,89540.0,89523.0,0.0111802]
[1766978027695,0.052066,89543.0,89520.0,0.05624]
[1766978027895,0.052066,89543.0,89530.0,0.0111794]
[1766978028075,0.052066,89543.0,89529.0,0.09504]
[1766978028580,0.052066,89543.0,89532.0,0.0111791]
[1766978028973,0.052066,89543.0,89530.0,0.05624]
[1766978028974,0.052066,89543.0,89535.0,0.0111788]
[1766978029988,0.05624,89554.0,89530.0,0.05624]
[1766978030181,0.05624,89554.0,89545.0,0.0111775]
[1766978030386,0.05624,89554.0,89541.0,0.00016758]
[1766978031682,0.0111758,89560.0,89541.0,0.00016758]
[1766978031988,0.05624,89561.0,89541.0,0.00016758]
[1766978032174,0.0111765,89554.0,89541.0,0.00016758]
[1766978033088,0.0111772,89549.0,89525.0,0.0674201]
[1766978033389,0.0111773,89547.0,89525.0,0.0674201]
[1766978033584,0.011178,89542.0,89516.0,0.05624]
[1766978033789,0.0111778,89543.0,89519.0,0.0111808]
[1766978033985,0.00016758,89540.0,89522.0,0.00016758]
[1766978034385,0.05640758,89540.0,89522.0,0.00016758]
[1766978035387,0.05640758,89540.0,89519.0,0.00911406]
[1766978035986,0.05640758,89540.0,89522.0,0.0111804]
[1766978036390,0.05640758,89540.0,89522.0,0.01134798]
[1766978037588,0.00016758,89540.0,89522.0,0.01134798]
[1766978037801,0.05636758,89540.0,89522.0,0.01134798]
[1766978039884,0.05636758,89540.0,89522.0,0.00016758]
[1766978040285,0.05636758,89540.0,89509.0,0.02987103]
[1766978040286,0.27949752,89540.0,89509.0,0.02987103]
[1766978040487,0.27949752,89540.0,89511.0,0.15124]
[1766978040687,0.05636758,89540.0,89511.0,0.18124]
[1766978041287,0.05636758,89540.0,89517.0,0.00016758]
[1766978041482,8e-08,89540.0,89518.0,0.0111809]
[1766978041688,0.09504,89569.0,89547.0,0.0111772]
[1766978041893,0.0562,89568.0,89547.0,0.0111772]
[1766978042093,0.0562,89568.0,89537.0,0.0562]
[1766978042094,0.0111748,89567.0,89543.0,0.0111777]
[1766978042280,0.0562,89568.0,89543.0,0.0111777]
[1766978042480,0.0562,89568.0,89542.0,0.0111778]
[1766978042699,0.00016749,89564.0,89539.0,0.0111783]
[1766978043295,0.00016749,89564.0,89542.0,0.0111779]
[1766978043688,0.00016749,89564.0,89539.0,0.0111783]
[1766978043895,0.22312994,89560.0,89535.0,0.0111788]
[1766978044196,0.15128,89559.0,89535.0,0.0111788]
[1766978044692,0.15128,89559.0,89542.0,0.0111779]
[1766978044892,0.15128,89559.0,89542.0,0.00016749]
[1766978046084,0.22312994,89560.0,89543.0,0.0111777]
[1766978046290,0.15124,89559.0,89545.0,0.0111775]
[1766978046893,0.15124,89559.0,89548.0,0.0111772]
[1766978047194,0.15124,89559.0,89545.0,0.0111775]
[1766978047893,0.15124,89559.0,89542.0,0.00016749]
[1766978048084,0.15124,89559.0,89543.0,0.0111777]
[1766978048291,0.00016749,89564.0,89546.0,0.0111773]
[1766978048592,0.15124,89563.0,89546.0,0.0111774]
[1766978049497,0.15124,89563.0,89548.0,0.0111771]
[1766978049700,0.15124,89563.0,89545.0,0.0111775]
[1766978050398,0.15124,89563.0,89547.0,0.0111772]
[1766978050696,0.15124,89563.0,89549.0,0.011177]
[1766978051194,0.15124,89563.0,89542.0,0.00016749]
[1766978052395,0.05636749,89564.0,89544.0,0.0111777]
[1766978052591,0.05636749,89564.0,89542.0,0.00016749]
[1766978053188,0.00016749,89564.0,89546.0,0.0111773]
[1766978053389,0.00016749,89564.0,89544.0,0.0111777]
[1766978054090,0.00016749,89564.0,89546.0,0.0111773]
[1766978054496,0.00016749,89564.0,89542.0,0.01134529]
[1766978054697,0.00016749,89564.0,89544.0,0.0111776]
[1766978055693,0.00016749,89564.0,89542.0,0.00016749]
[1766978055889,0.0111755,89562.0,89543.0,0.1512]
[1766978056291,0.0111758,89560.0,89543.0,0.1512]
[1766978056599,0.23430574,89560.0,89544.0,0.1512]
[1766978058496,0.0111758,89560.0,89544.0,0.1512]
[1766978059693,0.0562,89561.0,89544.0,0.1512]
[1766978061595,0.0562,89561.0,89542.0,0.00016749]
[1766978061794,0.0562,89561.0,89540.0,0.0562]
[1766978062395,0.0673756,89561.0,89540.0,0.0562]
[1766978062599,0.0673756,89561.0,89541.0,0.011178]
[1766978062806,0.0562,89561.0,89542.0,0.00016749]
[1766978063000,0.0673756,89561.0,89542.0,0.00016749]
[1766978063191,0.0673756,89561.0,89534.0,0.02987103]
[1766978063192,0.0111765,89554.0,89534.0,0.0111789]
[1766978063400,0.0562,89553.0,89534.0,0.0111789]
[1766978064102,0.0562,89553.0,89536.0,0.0111787]
[1766978064604,0.0562,89553.0,89538.0,0.0111783]
[1766978066411,0.0562,89553.0,89535.0,0.00011177]
[1766978066906,0.0562,89553.0,89525.0,0.02987103]
[1766978067108,0.0562,89553.0,89522.0,0.0111803]
[1766978067311,0.0111731,89581.0,89514.0,0.03981734]
[1766978067508,0.15116,89572.0,89517.0,0.03981734]
[1766978067709,0.0562,89571.0,89541.0,0.011178]
[1766978067906,0.0562,89571.0,89518.0,0.0562]
[1766978067907,0.0111759,89559.0,89535.0,0.0111787]
[1766978068107,0.1512,89558.0,89537.0,0.0111785]
[1766978068308,0.1512,89558.0,89522.0,0.0111804]
[1766978068509,0.1512,89558.0,89534.0,0.0111788]
[1766978068814,0.0111761,89557.0,89534.0,0.0111788]
[1766978070012,0.0111767,89553.0,89529.0,0.0111795]
[1766978070218,0.00016749,89550.0,89518.0,0.0562]
[1766978070517,0.05624,89549.0,89526.0,0.0111798]
[1766978070708,0.095,89548.0,89528.0,0.0111797]
[1766978071509,0.095,89548.0,89517.0,0.011181]
[1766978071711,0.095,89548.0,89532.0,0.0111791]
[1766978072412,0.095,89548.0,89517.0,0.011181]
[1766978072720,0.095,89548.0,89517.0,0.03]
[1766978072914,0.095,89548.0,89531.0,0.0111792]
[1766978073115,0.095,89548.0,89533.0,0.011179]
[1766978074619,0.05624,89547.0,89542.0,0.0111779]
[1766978074811,0.05624,89546.0,89542.0,0.0111779]
[1766978075010,0.05624,89546.0,89539.0,0.0111783]
[1766978075614,0.00016749,89550.0,89523.0,0.0111802]
[1766978075820,0.00016749,89550.0,89518.0,0.0111809]
[1766978075821,0.15124,89549.0,89537.0,0.0111784]
[1766978076119,0.05624,89548.0,89539.0,0.0111782]
[1766978076317,0.15124,89548.0,89535.0,0.0111787]
[1766978076808,0.15124,89548.0,89537.0,0.0111785]
[1766978077622,0.15124,89548.0,89534.0,0.0111789]
[1766978077822,0.00016749,89550.0,89543.0,0.0111778]
[1766978078023,0.05640749,89550.0,89528.0,0.0111796]
[1766978078215,0.05640749,89550.0,89544.0,0.0111776]
[1766978079124,0.05640749,89550.0,89540.0,0.0111781]
[1766978079520,0.05640749,89550.0,89542.0,0.0111778]
[1766978080121,0.05640749,89550.0,89538.0,0.0111783]
[1766978080423,0.05640749,89550.0,89541.0,0.011178]
[1766978081324,0.00016749,89550.0,89543.0,0.0111777]
[1766978081622,0.05640749,89550.0,89543.0,0.0111777]
[1766978082220,0.05640749,89550.0,89545.0,0.0111775]
[1766978083727,0.05640749,89550.0,89541.0,0.011178]
[1766978084026,0.00016749,89550.0,89547.0,0.0111772]
[1766978084224,0.00016749,89550.0,89534.0,0.095]
[1766978084528,0.00016749,89550.0,89541.0,0.011178]
[1766978084713,0.00016749,89550.0,89534.0,0.095]
[1766978084918,0.00016749,89550.0,89534.0,0.115]
[1766978086327,0.00016749,89550.0,89543.0,0.0111777]
[1766978087526,0.00016749,89550.0,89534.0,0.095]
[1766978087738,0.00016749,89550.0,89543.0,0.0111777]
[1766978088436,0.00016749,89550.0,89540.0,0.0111781]
[1766978089335,0.00016749,89550.0,89528.0,0.03981734]
[1766978089522,0.00016749,89550.0,89528.0,0.06981734]
[1766978089723,0.00016749,89550.0,89544.0,0.0111776]
[1766978092431,0.00016749,89550.0,89541.0,0.011178]
[1766978093033,0.00016749,89550.0,89543.0,0.0111777]
[1766978094635,0.00016749,89550.0,89539.0,0.0111782]
[1766978095036,0.00016749,89550.0,89535.0,0.0111787]
[1766978095228,0.00016749,89550.0,89537.0,0.0111785]
[1766978098627,0.00016749,89550.0,89532.0,0.0111792]
[1766978098828,0.00016749,89550.0,89537.0,0.0111785]
[1766978099134,0.00016749,89550.0,89539.0,0.0111782]
[1766978099438,0.00016749,89550.0,89541.0,0.011178]
[1766978100239,0.00016749,89550.0,89538.0,0.0111784]
[1766978101236,0.00016749,89550.0,89531.0,0.0111793]
[1766978101431,0.00016749,89550.0,89544.0,0.0111776]
[1766978101627,0.00016749,89550.0,89545.0,0.0111775]
[1766978101842,0.00016749,89550.0,89539.0,0.095]
[1766978102436,0.00016749,89550.0,89547.0,0.0111772]
[1766978103434,0.00016749,89550.0,89544.0,0.0111777]
[1766978103641,0.00016749,89550.0,89544.0,0.0411777]
[1766978104340,0.00016749,89550.0,89547.0,0.0111773]
[1766978104838,0.00016749,89550.0,89539.0,0.095]
[1766978105044,0.00016749,89550.0,89537.0,0.0111785]
[1766978105342,0.00016749,89550.0,89537.0,0.0411785]
[1766978105643,0.00016749,89550.0,89534.0,0.0111789]
[1766978105826,0.00016749,89550.0,89534.0,0.03]
[1766978106329,0.00016749,89550.0,89529.0,0.0111795]
[1766978106531,0.00016749,89550.0,89529.0,0.03]
[1766978106727,0.00016749,89550.0,89525.0,0.095]
[1766978107136,0.0111772,89548.0,89525.0,0.095]
[1766978107327,0.0111776,89545.0,89523.0,0.0111803]
[1766978107528,0.0111772,89549.0,89523.0,0.0411803]
[1766978107740,0.0111774,89547.0,89523.0,0.0411803]
[1766978107940,0.01134439,89550.0,89526.0,0.0111799]
[1766978108145,0.00016749,89550.0,89534.0,0.0111789]
[1766978108443,0.00016749,89550.0,89529.0,0.0111795]
[1766978108744,0.01134439,89550.0,89519.0,0.05616]
[1766978108931,0.0111779,89543.0,89519.0,0.08616]
[1766978109130,0.15116,89542.0,89519.0,0.07616]
[1766978109435,0.095,89541.0,89519.0,0.07616]
[1766978110030,0.095,89541.0,89520.0,0.0111807]
[1766978110944,0.1061782,89541.0,89516.0,0.0111811]
[1766978111139,0.0111785,89538.0,89516.0,0.0411811]
[1766978111347,0.0111784,89538.0,89513.0,0.00223432]
[1766978111642,0.05616,89537.0,89517.0,0.011181]
[1766978111943,0.15116,89537.0,89517.0,0.011181]
[1766978112439,0.15116,89537.0,89517.0,0.0111811]
[1766978113440,0.15116,89537.0,89513.0,0.00223432]
[1766978113640,0.15116,89537.0,89519.0,0.0111808]
[1766978115144,0.15116,89537.0,89513.0,0.00223432]
[1766978115445,0.15116,89537.0,89521.0,0.0111805]
[1766978115843,0.15116,89537.0,89513.0,0.00223432]
[1766978116139,0.05616,89536.0,89513.0,0.00223432]
[1766978116346,0.0111774,89547.0,89523.0,0.0111803]
[1766978116639,0.1512,89546.0,89523.0,0.0111803]
[1766978118450,0.0111776,89545.0,89523.0,0.0111803]
[1766978119150,0.1512,89544.0,89523.0,0.0111803]
[1766978119846,0.1512,89544.0,89513.0,0.00223432]
[1766978120242,0.0111785,89538.0,89516.0,0.0111812]
[1766978120442,0.22276465,89530.0,89516.0,0.0111812]
[1766978120744,0.27892465,89530.0,89516.0,0.0111812]
[1766978121443,0.22276465,89526.0,89513.0,0.00223432]
[1766978122552,0.22276465,89526.0,89513.0,4.32e-06]
[1766978122745,0.0111801,89525.0,89505.0,0.0111824]
[1766978122943,0.22276465,89520.0,89505.0,0.0111824]
[1766978123140,0.05616,89519.0,89505.0,0.0111824]
[1766978124543,0.05616,89519.0,89502.0,0.0111829]
[1766978125754,0.05616,89519.0,89504.0,0.0111826]
[1766978125945,0.00016749,89532.0,89494.0,0.05616]
[1766978126147,0.22276465,89530.0,89517.0,0.011181]
[1766978126346,0.1512,89529.0,89521.0,0.0111805]
[1766978126749,0.05616,89528.0,89517.0,0.011181]
[1766978126952,0.05616,89528.0,89521.0,0.0111805]
[1766978127150,0.05616,89528.0,89518.0,0.0111809]
[1766978127349,0.05616,89527.0,89521.0,0.0111805]
[1766978128254,0.22276465,89531.0,89521.0,0.0111805]
[1766978128451,0.05616,89530.0,89521.0,0.0111805]
[1766978129355,0.05616,89530.0,89510.0,0.22276465]
[1766978129551,0.27892465,89530.0,89510.0,0.03]
[1766978129755,0.05616,89531.0,89510.0,0.03]
[1766978129956,0.05616,89531.0,89526.0,0.0111798]
[1766978130252,0.05616,89531.0,89512.0,0.0111816]
[1766978130453,4e-08,89532.0,89531.0,0.0111793]
[1766978130648,0.05616,89553.0,89525.0,0.09504]
[1766978131048,0.0111757,89560.0,89525.0,0.09504]
[1766978131254,0.05616,89549.0,89545.0,0.0111775]
[1766978131648,0.05616,89550.0,89545.0,0.0111775]
[1766978131848,0.00016758,89556.0,89548.0,0.0111772]
[1766978132048,0.05616,89555.0,89548.0,0.0111772]
[1766978132649,8e-08,89543.0,89542.0,0.0111779]
[1766978133861,8e-08,89543.0,89538.0,0.01134588]
[1766978134064,8e-08,89543.0,89541.0,0.011178]
[1766978135063,8e-08,89543.0,89520.0,0.22276465]
[1766978135064,0.1512,89542.0,89517.0,0.011181]
[1766978135253,0.22276465,89530.0,89517.0,0.011181]
[1766978135757,0.05616,89532.0,89520.0,0.02992262]
[1766978136149,0.05616,89532.0,89517.0,0.011181]
[1766978136356,0.22276465,89530.0,89517.0,0.011181]
[1766978136557,0.05616,89532.0,89520.0,0.0111807]
[1766978137357,0.05616,89532.0,89516.0,0.0111811]
[1766978137561,0.05616,89532.0,89512.0,0.0111816]
[1766978137764,0.05616,89532.0,89512.0,0.0311816]
[1766978139066,0.05616,89532.0,89517.0,0.011181]
[1766978139666,0.05616,89532.0,89520.0,0.0111807]
[1766978139856,0.05616,89532.0,89510.0,0.31780465]
[1766978139857,0.00016758,89535.0,89510.0,0.31780465]
[1766978140055,0.00016758,89535.0,89524.0,0.0111801]
[1766978140252,0.00016758,89535.0,89527.0,0.0111798]
[1766978141266,0.23394165,89550.0,89527.0,0.0111798]
[1766978141466,0.05616008,89543.0,89527.0,0.0111798]
[1766978141966,0.05616008,89543.0,89524.0,0.0111802]
[1766978142168,0.22276465,89540.0,89524.0,0.0111802]
[1766978142363,0.22276465,89534.0,89516.0,0.0111811]
[1766978142568,0.22276465,89530.0,89519.0,0.0111808]
[1766978143179,0.05616,89536.0,89519.0,0.0111808]
[1766978143474,0.05616,89536.0,89515.0,0.09504]
[1766978143475,0.22276465,89530.0,89515.0,0.1062212]
[1766978143672,0.22276465,89530.0,89515.0,0.1362212]
[1766978143859,0.22276465,89530.0,89515.0,0.1062212]
[1766978144064,0.22276465,89525.0,89508.0,0.09504]
[1766978144372,0.22276465,89520.0,89494.0,0.1512]
[1766978144560,0.00016758,89516.0,89494.0,0.1812]